bitfinex-derivatives/quotes_SOLF0:USTF0_20241002
["timestamp","ask_amount","ask_price","bid_price","bid_amount"]
[1727850385327,2.7196,147.1,147.05,16.55438266]
[1727850385534,13.06,147.11,147.05,0.12502]
[1727850385728,13.06,147.09,147.05,0.12502]
[1727850385935,2.7203,147.06,147.05,0.12502]
[1727850390036,1.2766,147.14,147.05,0.12502]
[1727850390037,13.06,147.11,147.05,0.12502]
[1727850390740,2.7203,147.06,147.05,0.12502]
[1727850392235,2.7203,147.07,147.05,0.12502]
[1727850392437,8.35,147.09,147.05,0.12502]
[1727850393348,2.7203,147.06,147.05,0.12502]
[1727850394546,2.7202,147.07,147.05,0.12502]
[1727850394946,8.35,147.09,147.05,0.12502]
[1727850395147,2.7203,147.06,147.05,0.12502]
[1727850396346,8.35,147.1,147.05,8.47502]
[1727850396549,2.7201,147.08,147.05,8.47502]
[1727850397542,2.7202,147.07,147.05,8.47502]
[1727850400040,2.7202,147.07,147.06,8.35]
[1727850401544,2.7201,147.08,147.06,8.35]
[1727850402453,2.7203,147.07,147.05,8.47502]
[1727850403252,2.7203,147.07,147.06,8.35]
[1727850407851,2.7201,147.08,147.06,8.35]
[1727850414466,2.7202,147.07,147.06,8.35]
[1727850424068,2.7203,147.06,147.05,0.12502]
[1727850427874,8.35,147.08,147.02,8.35]
[1727850428068,1.3821,147.09,147.06,8.35]
[1727850428273,2.7201,147.08,147.06,8.35]
[1727850428472,1.3821,147.09,147.06,8.35]
[1727850428869,2.7202,147.07,147.06,8.35]
[1727850430281,2.72,147.08,147.06,8.35]
[1727850432873,2.6318,147.1,147.06,8.35]
[1727850434289,2.7201,147.08,147.06,8.35]
[1727850436984,2.6318,147.1,147.06,8.35]
[1727850437191,10.9818,147.1,146.99,0.12502]
[1727850437496,10.9818,147.1,147.04,8.35]
[1727850437680,2.7204,147.06,147.04,8.35]
[1727850443492,2.7204,147.06,147.05,8.35]
[1727850443698,2.7203,147.07,147.05,8.35]
[1727850447893,2.7203,147.06,147.05,8.35]
[1727850449399,2.7203,147.06,146.99,0.12502]
[1727850449400,10.9818,147.1,147.04,8.35]
[1727850450404,2.7205,147.06,147.04,8.35]
[1727850450788,2.7205,147.05,147.04,8.35]
[1727850451690,10.9818,147.1,146.99,0.12502]
[1727850451691,8.35,147.09,146.99,0.12502]
[1727850451893,8.35,147.07,147.02,8.35]
[1727850453292,2.7207,147.04,147.02,8.35]
[1727850453797,2.7207,147.05,147.03,8.35]
[1727850454600,2.7202,147.07,147.04,8.35]
[1727850455294,1.2619,147.09,147.04,8.35]
[1727850455603,2.7204,147.06,147.04,8.35]
[1727850458707,2.7205,147.05,147.04,8.35]
[1727850460505,1.2619,147.09,147.04,8.35]
[1727850461011,2.7204,147.06,147.04,8.35]
[1727850464805,2.7206,147.05,147.03,8.35]
[1727850466811,9.6119,147.09,147.03,8.35]
[1727850467002,1.2619,147.09,147.05,8.35]
[1727850467203,1.2619,147.09,147.06,8.35]
[1727850467410,2.6318,147.1,147.06,8.35]
[1727850467609,2.7202,147.07,147.06,8.35]
[1727850470410,2.7202,147.07,147.05,8.35]
[1727850472009,2.6318,147.1,147.05,8.35]
[1727850472209,2.7203,147.06,147.05,8.35]
[1727850476611,2.6318,147.1,147.05,8.35]
[1727850476812,2.6318,147.1,147.04,2.7207]
[1727850476813,2.6318,147.1,147.07,8.35]
[1727850477420,2.7201,147.08,147.07,8.35]
[1727850478520,2.6318,147.1,147.05,8.35]
[1727850478720,2.7202,147.07,147.05,8.35]
[1727850482223,2.6318,147.1,147.05,8.35]
[1727850482425,8.47502,147.11,147.05,11.0705]
[1727850482621,8.47502,147.11,147.05,8.35]
[1727850482927,2.7201,147.08,147.05,8.35]
[1727850483428,8.47502,147.11,147.07,8.35]
[1727850483624,2.7196,147.1,147.07,8.35]
[1727850483825,8.47502,147.11,147.07,8.35]
[1727850484434,0.12502,147.11,147.07,8.35]
[1727850485137,2.7199,147.09,147.07,8.35]
[1727850487431,2.7199,147.09,147.06,2.7203]
[1727850487432,0.12502,147.11,147.08,8.35]
[1727850487735,0.12502,147.11,147.1,8.35]
[1727850489233,2.84452,147.11,147.1,8.35]
[1727850492039,2.84452,147.11,147.09,8.35]
[1727850492735,0.12502,147.11,147.09,8.35]
[1727850492943,0.12502,147.11,147.1,8.35]
[1727850493838,2.84442,147.11,147.1,8.35]
[1727850494041,2.84442,147.11,147.09,8.35]
[1727850499943,0.12502,147.11,147.09,8.35]
[1727850501647,0.12502,147.11,147.1,8.35]
[1727850511556,0.12502,147.11,147.1,11.0696]
[1727850512356,2.7186,147.16,147.1,8.35]
[1727850512658,2.7186,147.16,147.04,9.4726]
[1727850512659,8.35,147.19,147.14,8.35]
[1727850512958,2.7187,147.15,147.13,8.35]
[1727850514460,2.7185,147.16,147.13,8.35]
[1727850514954,3.9585,147.22,147.13,8.35]
[1727850515153,2.7185,147.16,147.13,8.35]
[1727850515355,3.9585,147.22,147.11,3.38715037]
[1727850515356,3.9585,147.22,147.15,8.35]
[1727850515548,2.7182,147.18,147.14,2.7187]
[1727850515753,8.35,147.19,147.12,2.6443]
[1727850515956,8.35,147.19,147.14,8.35]
[1727850516160,2.7186,147.16,147.14,8.35]
[1727850516462,8.35,147.18,147.12,10.9943]
[1727850516655,8.35,147.18,147.12,8.35]
[1727850516656,2.7188,147.15,147.12,8.35]
[1727850516847,8.35,147.18,147.12,8.35]
[1727850517361,8.47502,147.17,147.12,8.35]
[1727850517958,2.7189,147.14,147.12,8.35]
[1727850519555,2.7192,147.13,147.11,8.35]
[1727850519758,2.7192,147.13,147.1,8.35]
[1727850519962,0.12502,147.17,147.07,1.327]
[1727850520160,2.7194,147.12,147.09,8.35]
[1727850521557,8.35,147.14,147.07,1.327]
[1727850521758,2.7195,147.11,147.07,1.327]
[1727850521956,2.7195,147.11,147.08,8.35]
[1727850522668,2.7193,147.12,147.08,11.0699]
[1727850522868,8.35,147.14,147.06,2.6443]
[1727850523062,8.35,147.12,147.08,8.35]
[1727850525363,2.7197,147.1,147.08,8.35]
[1727850527265,2.7198,147.09,147.07,8.35]
[1727850528366,8.35,147.12,147.07,8.35]
[1727850528557,2.7197,147.1,147.07,8.35]
[1727850533872,2.7199,147.09,147.07,8.35]
[1727850534565,2.7199,147.09,147.06,8.35]
[1727850540867,2.7202,147.07,147.05,8.47502]
[1727850550374,8.35,147.09,147.05,0.12502]
[1727850550574,2.7203,147.06,147.05,0.12502]
[1727850550785,8.35,147.08,147.05,0.12502]
[1727850551185,2.7203,147.07,147.05,0.12502]
[1727850551689,8.35,147.08,147.05,0.12502]
[1727850551887,2.7203,147.06,147.05,0.12502]
[1727850554391,4.0134,147.11,147.05,0.12502]
[1727850554590,2.7202,147.07,147.05,0.12502]
[1727850556585,4.0134,147.11,147.05,8.47502]
[1727850556788,2.7201,147.08,147.05,8.47502]
[1727850557183,8.35,147.1,147.05,8.47502]
[1727850557382,2.7202,147.07,147.05,8.47502]
[1727850557589,2.7202,147.07,147.05,0.12502]
[1727850558298,4.0134,147.11,147.05,8.47502]
[1727850558588,8.35,147.12,147.08,8.35]
[1727850558799,2.7194,147.12,147.09,8.35]
[1727850559382,2.7194,147.12,147.09,11.0697]
[1727850560397,2.7191,147.13,147.1,8.35]
[1727850561497,2.7191,147.13,147.1,11.0696]
[1727850562393,2.7191,147.13,147.1,8.35]
[1727850564693,2.7193,147.12,147.1,8.35]
[1727850568603,2.7193,147.12,147.09,11.0697]
[1727850573903,2.7193,147.12,147.09,8.35]
[1727850579603,2.7192,147.13,147.1,8.35]
[1727850579810,9.6681,147.15,147.1,8.35]
[1727850580311,2.719,147.14,147.1,11.0696]
[1727850580804,9.6681,147.15,147.1,11.0696]
[1727850581006,2.7191,147.13,147.1,11.0696]
[1727850583910,9.6681,147.15,147.1,8.35]
[1727850584310,2.7193,147.12,147.1,8.35]
[1727850584510,10.8851,147.16,147.11,8.35]
[1727850584815,2.7194,147.11,147.1,8.35]
[1727850585508,8.35,147.14,147.07,2.72]
[1727850585719,2.7198,147.09,147.06,57.45638088]
[1727850585908,8.35,147.08,147.05,0.12502]
[1727850586617,2.7203,147.07,147.05,0.12502]
[1727850597513,8.35,147.08,147.05,8.47502]
[1727850597514,2.72,147.08,147.05,8.47502]
[1727850602031,2.72,147.08,147.05,0.12502]
[1727850608333,2.7197,147.1,147.07,8.35]
[1727850608732,83.59999699,147.14,147.09,8.35]
[1727850608934,2.7193,147.12,147.09,8.35]
[1727850610139,2.7189,147.14,147.11,8.35]
[1727850610343,12.3877,147.16,147.11,8.35]
[1727850610932,11.0688,147.15,147.1,8.35]
[1727850611135,8.35,147.15,147.1,8.35]
[1727850611531,4.0377,147.16,147.1,8.35]
[1727850611729,4.0377,147.16,147.1,11.0695]
[1727850611940,2.7191,147.13,147.1,11.0695]
[1727850612139,8.35,147.15,147.1,8.35]
[1727850612546,2.7191,147.13,147.1,8.35]
[1727850613241,2.7191,147.13,147.1,11.0696]
[1727850614845,2.7191,147.13,147.1,8.35]
[1727850621143,4.0377,147.16,147.1,8.35]
[1727850621352,2.719,147.14,147.1,11.0695]
[1727850621744,2.7191,147.13,147.1,8.35]
[1727850623346,2.7191,147.13,147.1,11.0696]
[1727850623544,2.7193,147.12,147.06,3.9793]
[1727850623747,2.7193,147.12,147.09,8.35]
[1727850624655,8.35,147.14,147.09,11.0698]
[1727850624656,2.7191,147.13,147.09,11.0698]
[1727850625149,2.7191,147.13,147.1,8.35]
[1727850626445,2.719,147.14,147.1,11.0695]
[1727850626641,8.35,147.15,147.1,8.35]
[1727850628764,2.7192,147.13,147.1,8.35]
[1727850632152,2.7189,147.14,147.12,8.35]
[1727850632343,4.0377,147.16,147.11,8.35]
[1727850633150,8.35,147.12,147.05,0.12502]
[1727850633353,3.37457008,147.14,147.05,8.47502]
[1727850633656,2.7197,147.1,147.06,11.0702]
[1727850634051,8.35,147.11,147.06,11.0702]
[1727850634248,8.35,147.11,147.06,8.35]
[1727850634249,2.7199,147.09,147.06,8.35]
[1727850634948,8.35,147.09,147.05,0.12502]
[1727850635147,8.35,147.07,147.05,0.12502]
[1727850635456,2.7203,147.06,147.05,0.12502]
[1727850636559,2.72,147.08,147.05,8.47502]
[1727850636857,75.26986532,147.11,147.07,8.35]
[1727850637051,2.7188,147.15,147.11,2.7194]
[1727850637354,0.12502,147.17,147.14,8.35]
[1727850637946,0.12502,147.17,147.13,8.35]
[1727850638256,2.7187,147.15,147.13,8.35]
[1727850639058,2.7187,147.15,147.1,2.7196]
[1727850639247,2.7189,147.14,147.06,10.8184]
[1727850639451,2.7189,147.14,147.12,8.35]
[1727850640450,2.7187,147.15,147.12,8.35]
[1727850640859,2.7187,147.15,147.13,8.35]
[1727850641158,8.47502,147.17,147.13,8.35]
[1727850641363,2.7186,147.16,147.13,8.35]
[1727850643054,2.7185,147.16,147.14,8.35]
[1727850643252,0.12502,147.17,147.14,8.35]
[1727850643560,2.84332,147.17,147.14,8.35]
[1727850643865,0.12502,147.17,147.14,8.35]
[1727850644059,0.12502,147.17,147.13,8.35]
[1727850644363,2.7185,147.16,147.13,8.35]
[1727850644558,0.12502,147.17,147.13,8.35]
[1727850645155,2.84342,147.17,147.13,8.35]
[1727850645564,2.84342,147.17,147.14,8.35]
[1727850650268,2.84332,147.17,147.14,8.35]
[1727850650863,2.84332,147.17,147.13,11.069]
[1727850651064,2.84332,147.17,147.13,8.35]
[1727850651465,2.84342,147.17,147.13,8.35]
[1727850652066,2.7187,147.15,147.13,8.35]
[1727850652664,8.35,147.16,147.11,3.37841103]
[1727850652973,8.35,147.16,147.06,10.8184]
[1727850652974,8.35,147.14,147.09,8.35]
[1727850653481,2.7193,147.12,147.09,8.35]
[1727850653771,8.35,147.12,147.06,4.0124]
[1727850653965,2.7193,147.12,147.09,8.35]
[1727850654166,8.35,147.15,147.1,8.35]
[1727850655370,2.7192,147.13,147.1,8.35]
[1727850657371,2.7189,147.14,147.1,8.35]
[1727850657973,11.0688,147.15,147.11,2.7194]
[1727850658370,11.0291,147.16,147.11,8.35]
[1727850658676,8.35,147.16,147.11,8.35]
[1727850658977,0.12502,147.17,147.12,8.35]
[1727850659173,0.12502,147.17,147.14,8.35]
[1727850660473,0.12502,147.17,147.15,8.35]
[1727850660674,0.12502,147.17,147.16,8.35]
[1727850660981,0.12502,147.17,147.16,11.0685]
[1727850661675,0.12502,147.23,147.19,2.7178]
[1727850661881,0.12502,147.23,147.21,8.35]
[1727850662669,0.12502,147.23,147.22,2.7174]
[1727850663368,0.12502,147.23,147.16,10.15507408]
[1727850663369,2.84112,147.29,147.25,8.35]
[1727850664179,0.12502,147.29,147.25,8.35]
[1727850664379,0.12502,147.29,147.25,11.0667]
[1727850664677,0.12502,147.29,147.26,8.35]
[1727850664975,0.12502,147.29,147.26,11.0665]
[1727850665174,0.12502,147.29,147.26,8.35]
[1727850665376,0.12502,147.29,147.28,8.35]
[1727850666782,0.12502,147.29,147.28,11.0663]
[1727850668884,0.12502,147.35,147.28,8.35]
[1727850669081,0.12502,147.35,147.33,8.35]
[1727850669882,0.12502,147.35,147.34,8.35]
[1727850670075,0.12502,147.35,147.34,11.0652]
[1727850670478,11.18902,147.41,147.35,2.7149]
[1727850670678,8.35,147.4,147.33,3.36183754]
[1727850670983,8.35,147.36,147.32,8.35]
[1727850671282,8.35,147.36,147.29,0.12502]
[1727850671283,11.065,147.36,147.29,0.12502]
[1727850671479,8.35,147.36,147.29,0.12502]
[1727850671687,13.04,147.38,147.29,13.16502]
[1727850671876,2.7149,147.36,147.29,13.16502]
[1727850672272,2.7153,147.34,147.29,0.12502]
[1727850672482,13.04,147.36,147.29,0.12502]
[1727850672783,1.2569,147.35,147.29,0.12502]
[1727850672978,2.7159,147.3,147.29,0.12502]
[1727850673982,2.7164,147.28,147.23,2.84222]
[1727850674379,13.04,147.32,147.23,0.12502]
[1727850674581,2.7161,147.29,147.24,2.717]
[1727850674782,13.04,147.32,147.23,0.12502]
[1727850675286,2.7167,147.26,147.23,0.12502]
[1727850675679,13.04,147.3,147.23,0.12502]
[1727850675680,2.717,147.25,147.23,0.12502]
[1727850675880,13.04,147.28,147.23,0.12502]
[1727850676383,2.7166,147.27,147.23,0.12502]
[1727850676680,2.6473,147.29,147.23,13.16502]
[1727850676878,2.7164,147.28,147.23,15.88212]
[1727850677281,2.6473,147.29,147.23,13.16502]
[1727850677481,2.6473,147.29,147.24,2.7169]
[1727850677676,2.6473,147.29,147.23,13.16502]
[1727850677877,2.7167,147.26,147.23,0.12502]
[1727850678185,2.6473,147.29,147.23,0.12502]
[1727850678382,2.7168,147.26,147.23,0.12502]
[1727850678784,2.6473,147.29,147.23,0.12502]
[1727850678985,2.7169,147.25,147.23,0.12502]
[1727850680375,2.7167,147.26,147.23,0.12502]
[1727850681590,2.7165,147.27,147.23,2.84222]
[1727850682185,2.7163,147.28,147.23,0.12502]
[1727850682388,2.6473,147.29,147.24,2.717]
[1727850682889,13.04,147.32,147.24,2.717]
[1727850683890,13.04,147.3,147.23,2.84212]
[1727850684491,2.7166,147.27,147.23,2.84212]
[1727850685185,13.04,147.3,147.23,0.12502]
[1727850685382,13.04,147.32,147.23,0.12502]
[1727850686187,13.04,147.32,147.25,2.7167]
[1727850686395,15.6966,147.34,147.24,13.04]
[1727850686689,15.6966,147.34,147.26,13.04]
[1727850687082,13.04,147.32,147.24,13.04]
[1727850687286,13.04,147.32,147.23,0.12502]
[1727850687990,13.04,147.32,147.25,2.7168]
[1727850688496,13.04,147.32,147.24,13.04]
[1727850688792,15.6966,147.34,147.26,13.04]
[1727850689196,15.6966,147.34,147.28,2.7162]
[1727850689496,2.7157,147.32,147.28,2.7162]
[1727850690488,15.6966,147.34,147.26,13.04]
[1727850690989,15.6966,147.34,147.28,2.7162]
[1727850691191,2.7155,147.33,147.26,13.04]
[1727850692292,1.38192,147.35,147.26,13.04]
[1727850692498,4.09702,147.35,147.28,13.04]
[1727850692801,2.84012,147.35,147.3,2.7159]
[1727850695293,0.12502,147.35,147.28,13.04]
[1727850695497,0.12502,147.35,147.3,13.04]
[1727850695890,0.12502,147.35,147.31,2.7157]
[1727850696395,0.12502,147.35,147.33,2.7153]
[1727850697399,0.12502,147.35,147.32,2.7155]
[1727850697596,0.12502,147.35,147.27,1.3376]
[1727850697895,0.12502,147.35,147.28,13.04]
[1727850698098,2.7154,147.33,147.29,2.716]
[1727850698488,0.12502,147.35,147.28,13.04]
[1727850698685,2.84012,147.35,147.3,2.7158]
[1727850698896,0.12502,147.35,147.3,2.7158]
[1727850700298,2.7152,147.34,147.3,2.7158]
[1727850700791,2.7154,147.33,147.29,2.7161]
[1727850700998,0.12502,147.35,147.28,13.04]
[1727850701391,2.7157,147.32,147.28,13.04]
[1727850701788,2.7157,147.32,147.27,4.054]
[1727850701789,0.12502,147.35,147.27,1.3376]
[1727850702097,2.716,147.3,147.25,14.3278]
[1727850702597,14.4211,147.34,147.24,13.04]
[1727850702598,2.7163,147.28,147.24,13.04]
[1727850702799,13.04,147.32,147.24,13.04]
[1727850702998,2.6681,147.33,147.24,16.38169454]
[1727850703297,2.7158,147.31,147.26,2.7165]
[1727850703500,2.6681,147.33,147.27,13.04]
[1727850703697,0.12502,147.35,147.29,13.04]
[1727850704594,0.12502,147.35,147.27,13.04]
[1727850704792,13.16502,147.35,147.26,14.3352]
[1727850705003,13.16502,147.35,147.26,13.04]
[1727850705700,2.716,147.3,147.26,15.7566]
[1727850705897,13.16502,147.35,147.26,13.04]
[1727850706105,13.04,147.33,147.24,13.04]
[1727850706401,1.3904,147.32,147.24,13.04]
[1727850706595,13.04,147.31,147.23,1.45482]
[1727850707101,2.7166,147.27,147.23,4.17192]
[1727850707997,2.7169,147.25,147.23,0.12502]
[1727850708296,13.04,147.29,147.23,0.12502]
[1727850708697,2.7168,147.26,147.23,0.12502]
[1727850709300,2.7165,147.27,147.23,0.12502]
[1727850710205,2.7163,147.28,147.23,0.12502]
[1727850710397,13.04,147.31,147.23,0.12502]
[1727850710902,13.04,147.31,147.23,2.84212]
[1727850711904,2.7165,147.27,147.23,2.84212]
[1727850715714,3.9941,147.32,147.23,0.12502]
[1727850715909,3.9941,147.32,147.25,15.7567]
[1727850716622,2.7159,147.3,147.26,2.7165]
[1727850717529,2.7159,147.3,147.28,8.35]
[1727850718010,12.3441,147.32,147.28,8.35]
[1727850718612,2.7161,147.29,147.27,8.35]
[1727850718921,12.3441,147.32,147.27,8.35]
[1727850719525,2.7161,147.3,147.26,2.7165]
[1727850720027,2.7161,147.3,147.27,2.7164]
[1727850721036,2.7161,147.3,147.26,2.7166]
[1727850722122,2.7164,147.28,147.24,2.7169]
[1727850723119,2.7158,147.31,147.27,2.7164]
[1727850724217,2.7159,147.3,147.27,2.7164]
[1727850724616,13.03,147.34,147.26,13.03]
[1727850724817,0.12502,147.35,147.26,13.03]
[1727850725323,2.7158,147.31,147.27,2.7164]
[1727850725630,13.03,147.32,147.24,1.3582]
[1727850726516,2.7164,147.28,147.24,4.0751]
[1727850728331,2.7164,147.28,147.24,7.51562227]
[1727850728843,13.03,147.3,147.23,0.12502]
[1727850729338,2.7167,147.26,147.23,0.12502]
[1727850730918,16.9873,147.31,147.23,0.12502]
[1727850731126,2.7169,147.25,147.23,0.12502]
[1727850731325,16.9873,147.31,147.23,0.12502]
[1727850732225,2.7167,147.26,147.23,0.12502]
[1727850732934,16.9873,147.31,147.23,0.12502]
[1727850733138,2.717,147.24,147.23,0.12502]
[1727850734321,2.7177,147.21,147.17,13.15502]
[1727850734523,2.7177,147.21,147.17,15.87322]
[1727850735132,13.03,147.25,147.17,13.15502]
[1727850735434,2.7174,147.22,147.18,2.7181]
[1727850736136,2.7174,147.22,147.17,15.87322]
[1727850736634,2.7176,147.21,147.17,15.87322]
[1727850736834,13.03,147.25,147.17,0.12502]
[1727850737141,2.7174,147.22,147.17,0.12502]
[1727850737523,2.5944,147.24,147.17,2.84322]
[1727850737934,2.7177,147.21,147.17,2.84322]
[1727850740024,2.7178,147.2,147.17,0.12502]
[1727850740220,3.9817,147.24,147.17,0.12502]
[1727850740929,2.7179,147.2,147.17,0.12502]
[1727850741631,2.7179,147.2,147.17,8.47502]
[1727850743026,2.7176,147.21,147.17,11.19322]
[1727850746335,8.35,147.26,147.2,8.35]
[1727850746631,83.54440329,147.28,147.22,8.35]
[1727850746835,83.54440329,147.28,147.24,8.35]
[1727850747834,2.7167,147.26,147.24,8.35]
[1727850748031,75.19440329,147.28,147.24,8.35]
[1727850748235,2.7169,147.25,147.23,8.35]
[1727850748534,8.35,147.24,147.18,8.35]
[1727850748842,8.35,147.24,147.18,11.068]
[1727850749035,8.35,147.24,147.18,2.718]
[1727850749242,8.35,147.21,147.17,0.12502]
[1727850749440,2.7179,147.19,147.17,0.12502]
[1727850749931,2.7181,147.18,147.17,0.12502]
[1727850751438,13.05,147.18,147.11,0.12502]
[1727850751639,1.2745,147.17,147.11,0.12502]
[1727850751937,13.05,147.16,147.11,0.12502]
[1727850752135,2.7192,147.12,147.11,0.12502]
[1727850754843,14.4144,147.16,147.11,0.12502]
[1727850755044,2.7191,147.13,147.11,0.12502]
[1727850755435,2.7192,147.12,147.11,0.12502]
[1727850757036,2.7189,147.14,147.11,0.12502]
[1727850757240,1.2959,147.15,147.11,0.12502]
[1727850757844,2.7192,147.13,147.11,0.12502]
[1727850758144,1.2959,147.15,147.11,0.12502]
[1727850759239,2.7192,147.12,147.11,0.12502]
[1727850766145,2.7192,147.12,147.07,13.05]
[1727850766146,2.7199,147.09,147.05,0.12502]
[1727850766341,1.2959,147.15,147.05,0.12502]
[1727850766342,13.05,147.14,147.05,0.12502]
[1727850766544,1.2959,147.15,147.05,13.17502]
[1727850766847,1.2959,147.15,147.08,2.7199]
[1727850766848,2.7193,147.12,147.08,2.7199]
[1727850767445,2.7194,147.11,147.08,2.7199]
[1727850768149,1.2959,147.15,147.08,2.7199]
[1727850768341,2.7193,147.12,147.08,2.7199]
[1727850768741,2.7193,147.12,147.07,13.05]
[1727850768742,2.7195,147.11,147.07,15.7701]
[1727850769346,2.7196,147.1,147.07,15.7701]
[1727850771348,2.7196,147.1,147.07,13.05]
[1727850771645,2.7196,147.1,147.07,8.35]
[1727850774248,1.2959,147.15,147.09,8.35]
[1727850774451,1.2959,147.15,147.1,8.35]
[1727850774452,9.6459,147.15,147.1,8.35]
[1727850774844,2.7191,147.13,147.1,8.35]
[1727850775341,2.7192,147.12,147.1,8.35]
[1727850778558,2.7194,147.11,147.08,11.0699]
[1727850778745,2.7194,147.11,147.08,8.35]
[1727850780456,2.7193,147.12,147.08,11.0699]
[1727850781952,1.2959,147.15,147.1,8.35]
[1727850782158,2.719,147.14,147.11,8.35]
[1727850782355,1.2959,147.15,147.11,8.35]
[1727850782655,1.2959,147.15,147.1,8.35]
[1727850783054,8.35,147.14,147.1,8.35]
[1727850783442,2.7192,147.13,147.1,11.0696]
[1727850783846,1.39952,147.17,147.11,8.35]
[1727850784056,9.74952,147.17,147.11,8.35]
[1727850784451,0.12502,147.17,147.12,8.35]
[1727850784848,0.12502,147.17,147.15,11.0686]
[1727850785154,0.12502,147.17,147.15,8.35]
[1727850785652,0.12502,147.17,147.14,11.0688]
[1727850785851,2.7186,147.16,147.13,8.35]
[1727850786058,8.35,147.16,147.11,8.35]
[1727850786252,8.35,147.16,147.11,11.0693]
[1727850786450,2.7188,147.15,147.11,11.0693]
[1727850786757,2.7188,147.15,147.12,8.35]
[1727850786942,2.7188,147.15,147.1,8.35]
[1727850786943,8.35,147.15,147.1,8.35]
[1727850787356,8.35,147.15,147.09,8.35]
[1727850787554,2.7193,147.12,147.09,8.35]
[1727850787743,8.35,147.14,147.09,8.35]
[1727850788054,2.84342,147.17,147.13,11.0689]
[1727850788358,2.84342,147.17,147.13,8.35]
[1727850788359,0.12502,147.17,147.13,8.35]
[1727850788654,0.12502,147.17,147.15,8.35]
[1727850789248,0.12502,147.17,147.15,11.0686]
[1727850789760,0.12502,147.17,147.16,8.35]
[1727850790163,0.12502,147.17,147.16,11.0685]
[1727850791357,2.7174,147.22,147.18,2.718]
[1727850791554,2.7174,147.22,147.16,13.04]
[1727850793257,0.12502,147.23,147.18,2.718]
[1727850793454,2.84222,147.23,147.18,13.04]
[1727850794359,2.84222,147.23,147.19,2.7178]
[1727850794554,2.84222,147.23,147.18,13.04]
[1727850794756,0.12502,147.23,147.16,13.04]
[1727850795258,13.16502,147.23,147.14,19.844]
[1727850795564,2.7179,147.2,147.16,2.7184]
[1727850796263,0.12502,147.23,147.16,13.04]
[1727850796466,2.7175,147.22,147.18,2.7181]
[1727850797352,2.7177,147.21,147.17,2.7182]
[1727850801171,2.84242,147.23,147.18,2.718]
[1727850801361,0.12502,147.23,147.18,2.718]
[1727850801765,2.7175,147.22,147.18,2.718]
[1727850803465,0.12502,147.23,147.2,2.7177]
[1727850804272,2.84222,147.23,147.19,2.7179]
[1727850806559,0.12502,147.29,147.2,13.04]
[1727850806759,0.12502,147.35,147.28,13.04]
[1727850806964,0.12502,147.35,147.32,13.04]
[1727850807163,0.12502,147.35,147.34,15.7552]
[1727850807372,0.12502,147.35,147.34,13.04]
[1727850807663,0.12502,147.35,147.33,2.7072]